bitfinex/quotes_BTCUSD_20230108
["timestamp","ask_amount","ask_price","bid_price","bid_amount"]
[1673187650879,0.79690448,16952.0,16951.0,3.38507508]
[1673187651679,0.79690448,16952.0,16951.0,4.08507508]
[1673187654021,1.0625389,16952.0,16951.0,4.08507508]
[1673187654538,0.79690448,16952.0,16951.0,4.08507508]
[1673187654807,0.63292234,16952.0,16951.0,4.08507508]
[1673187661568,0.63292234,16952.0,16951.0,4.08120908]
[1673187662364,0.63292234,16952.0,16951.0,4.08132445]
[1673187664440,1.06253864,16952.0,16951.0,4.08120908]
[1673187664714,0.81000937,16952.0,16951.0,4.08120908]
[1673187664969,0.45604889,16952.0,16951.0,4.74438108]
[1673187665289,0.45604889,16952.0,16951.0,3.67615908]
[1673187665512,0.45604889,16952.0,16951.0,3.38132445]
[1673187666262,0.45604889,16952.0,16951.0,4.08132445]
[1673187667865,0.19041473,16952.0,16951.0,4.08132445]
[1673187668641,0.45604889,16952.0,16951.0,4.08132445]
[1673187668895,0.19041473,16952.0,16951.0,4.08132445]
[1673187669111,0.45604889,16952.0,16951.0,4.08132445]
[1673187669406,0.19041473,16952.0,16951.0,4.08132445]
[1673187669662,0.19041473,16952.0,16951.0,4.49045141]
[1673187669916,0.19041473,16952.0,16951.0,4.08132445]
[1673187670688,0.45604889,16952.0,16951.0,4.08132445]
[1673187671217,0.19041473,16952.0,16951.0,4.08132445]
[1673187672195,0.19041473,16952.0,16951.0,3.38132445]
[1673187673184,0.45604889,16952.0,16951.0,3.38132445]
[1673187673422,0.45604889,16952.0,16951.0,4.08132445]
[1673187673668,0.19041473,16952.0,16951.0,4.08132445]
[1673187679401,0.19041473,16952.0,16951.0,3.38132445]
[1673187680261,0.19041473,16952.0,16951.0,4.08132445]
[1673187684180,0.19041473,16952.0,16951.0,4.08133239]
[1673187684685,0.45604889,16952.0,16951.0,4.08133239]
[1673187685214,0.19041473,16952.0,16951.0,4.08133239]
[1673187685447,0.45604889,16952.0,16951.0,4.44955439]
[1673187685712,0.45604889,16952.0,16951.0,4.08133239]
[1673187686192,0.45604889,16952.0,16951.0,4.44955439]
[1673187686439,0.45604889,16952.0,16951.0,3.74955439]
[1673187686951,0.45604889,16952.0,16951.0,3.38133239]
[1673187687217,0.45604889,16952.0,16951.0,4.08133239]
[1673187687485,0.19041473,16952.0,16951.0,4.44955439]
[1673187687739,0.45604889,16952.0,16951.0,4.08133239]
[1673187693314,0.45604889,16952.0,16951.0,3.38133239]
[1673187693554,0.81000937,16952.0,16951.0,3.38133239]
[1673187693806,0.80996806,16952.0,16951.0,4.08133239]
[1673187694597,0.45600758,16952.0,16951.0,4.08133239]
[1673187697493,0.80996806,16952.0,16951.0,4.08133239]
[1673187697748,0.45600758,16952.0,16951.0,4.08133239]
[1673187698037,0.80996806,16952.0,16951.0,4.08133239]
[1673187698263,0.45600758,16952.0,16951.0,4.08133239]
[1673187699292,0.80996806,16952.0,16951.0,4.08133239]
[1673187699923,0.63292234,16952.0,16951.0,3.38133239]
[1673187700075,0.45601726,16952.0,16951.0,3.38133239]
[1673187700852,0.45601726,16952.0,16951.0,4.08133239]
[1673187701105,0.80997774,16952.0,16951.0,4.08133239]
[1673187703405,0.45601726,16952.0,16951.0,4.08133239]
[1673187703922,0.80997774,16952.0,16951.0,4.08133239]
[1673187704439,0.45601726,16952.0,16951.0,4.08133239]
[1673187704977,0.80997774,16952.0,16951.0,4.08133239]
[1673187706089,0.45601726,16952.0,16951.0,4.08133239]
[1673187706858,0.45601726,16952.0,16951.0,3.38133239]
[1673187707866,0.45601726,16952.0,16951.0,4.08133239]
[1673187710409,0.1903831,16952.0,16951.0,4.08133239]
[1673187711924,0.45601726,16952.0,16951.0,4.08133239]
[1673187712897,0.1903831,16952.0,16951.0,4.25824165]
[1673187713141,0.1903831,16952.0,16951.0,4.08133239]
[1673187714508,0.1903831,16952.0,16951.0,4.25824165]
[1673187715431,0.1903831,16952.0,16951.0,4.62646365]
[1673187716121,0.1903831,16952.0,16951.0,4.25824165]
[1673187716377,0.0133277,16952.0,16951.0,4.62646365]
[1673187717124,0.0133277,16952.0,16951.0,4.25824165]
[1673187717404,0.0133277,16952.0,16951.0,4.62646365]
[1673187718200,0.0133277,16952.0,16951.0,4.25824165]
[1673187720992,0.0133277,16952.0,16951.0,3.55824165]
[1673187721881,0.0133277,16952.0,16951.0,4.25824165]
[1673187722093,0.0133277,16952.0,16951.0,5.62106505]
[1673187722630,0.0133277,16952.0,16951.0,5.06510608]
[1673187722888,0.0133277,16952.0,16951.0,5.62094546]
[1673187723208,0.0133277,16952.0,16951.0,5.06510608]
[1673187723650,0.0133277,16952.0,16951.0,5.62378314]
[1673187723918,0.0133277,16952.0,16951.0,5.06510608]
[1673187724653,0.0133277,16952.0,16951.0,4.79968923]
[1673187727818,0.0133277,16952.0,16951.0,4.09968923]
[1673187728852,0.0133277,16952.0,16951.0,4.79968923]
[1673187734847,0.0133277,16952.0,16951.0,4.09968923]
[1673187735911,0.0133277,16952.0,16951.0,4.79968923]
[1673187741903,0.0133277,16952.0,16951.0,4.09968923]
[1673187742432,0.0133277,16952.0,16951.0,3.73146723]
[1673187742947,0.0133277,16952.0,16951.0,4.43146723]
[1673187743194,0.0133277,16952.0,16951.0,4.79968923]
[1673187743719,0.0133277,16952.0,16951.0,5.06510608]
[1673187744253,0.0133277,16952.0,16951.0,4.60351155]
[1673187744497,0.0133277,16952.0,16951.0,4.3380947]
[1673187744759,0.0133277,16952.0,16951.0,4.60351155]
[1673187745016,0.0133277,16952.0,16951.0,4.3380947]
[1673187745275,0.0133277,16952.0,16951.0,4.60351155]
[1673187747667,0.0133277,16952.0,16951.0,4.3380947]
[1673187748401,0.0133277,16952.0,16951.0,4.60351155]
[1673187748920,0.0133277,16952.0,16951.0,3.90351155]
[1673187749187,0.0133277,16952.0,16951.0,3.53528955]
[1673187749947,0.0133277,16952.0,16951.0,4.82994685]
[1673187750193,0.0133277,16952.0,16951.0,5.19816885]
[1673187750926,0.0133277,16952.0,16951.0,5.35192629]
[1673187754408,0.01243533,16952.0,16951.0,5.35192629]
[1673187754909,0.01243533,16952.0,16951.0,4.75726899]
[1673187755154,0.01243533,16952.0,16951.0,4.98381913]
[1673187755403,0.18949073,16952.0,16951.0,5.35204113]
[1673187756421,0.18949073,16952.0,16951.0,4.75726899]
[1673187756692,0.18949073,16952.0,16951.0,4.98386145]
[1673187757448,0.80332433,16953.0,16952.0,0.7]
[1673187757725,0.80332433,16953.0,16952.0,3.9839247]
[1673187757956,0.62626893,16953.0,16952.0,3.9839247]
[1673187758697,0.62626893,16953.0,16952.0,4.5323989]
[1673187759459,0.62626893,16953.0,16952.0,4.9776209]
[1673187760434,0.62626893,16953.0,16952.0,4.2776209]
[1673187760691,0.80334837,16953.0,16952.0,4.2776209]
[1673187760939,0.80334837,16953.0,16952.0,3.9093989]
[1673187761190,0.62626893,16953.0,16952.0,3.9093989]
[1673187761688,0.62626893,16953.0,16952.0,4.6093989]
[1673187762471,0.62626893,16953.0,16952.0,4.9776209]
[1673187762979,0.62626893,16953.0,16952.0,4.6093989]
[1673187763261,0.80334991,16953.0,16952.0,4.6093989]
[1673187764000,0.44938943,16953.0,16952.0,4.6093989]
[1673187764277,0.80334991,16953.0,16952.0,4.9776209]
[1673187764532,0.80334991,16953.0,16952.0,4.6093989]
[1673187764764,0.62626893,16953.0,16952.0,4.6093989]
[1673187767881,0.62626893,16953.0,16952.0,3.9093989]
[1673187768608,0.62626893,16953.0,16952.0,4.6093989]
[1673187769104,0.62626893,16953.0,16952.0,4.60855821]
[1673187777318,0.62626893,16953.0,16952.0,3.90855821]
[1673187778340,0.62626893,16953.0,16952.0,4.60855821]
[1673187779085,0.80332885,16953.0,16952.0,4.97678021]
[1673187779345,0.80332885,16953.0,16952.0,4.60855821]
[1673187779850,0.44936837,16953.0,16952.0,4.60855821]
[1673187780120,0.80332885,16953.0,16952.0,4.60855821]
[1673187780379,0.44936837,16953.0,16952.0,4.60855821]
[1673187787524,0.80332885,16953.0,16952.0,4.60855821]
[1673187787788,0.44936837,16953.0,16952.0,4.60855821]
[1673187792637,0.44936837,16953.0,16952.0,3.90855821]
[1673187793615,0.44936837,16953.0,16952.0,4.60855821]
[1673187794622,0.62626893,16953.0,16952.0,4.0951742]
[1673187795120,0.51917174,16953.0,16952.0,3.20518414]
[1673187795385,0.88686674,16953.0,16952.0,3.20518414]
[1673187795639,1.44675709,16953.0,16952.0,3.20518414]
[1673187796673,1.44675447,16953.0,16952.0,3.20518414]
[1673187796921,1.44675434,16953.0,16952.0,3.20518414]
[1673187797194,1.09268008,16953.0,16952.0,3.20518414]
[1673187797412,1.44669972,16953.0,16952.0,3.20518414]
[1673187797666,1.07900472,16953.0,16952.0,3.20518414]
[1673187797924,1.44669972,16953.0,16952.0,3.20518414]
[1673187798690,1.07900472,16953.0,16952.0,3.20518414]
[1673187798949,1.07900472,16953.0,16952.0,3.79508414]
[1673187800102,0.80338727,16953.0,16952.0,3.79508414]
[1673187800917,1.06142742,16953.0,16952.0,3.79508414]
[1673187801166,0.80338727,16953.0,16952.0,3.79508414]
[1673187801679,0.80338727,16953.0,16952.0,4.30768349]
[1673187801935,1.06886319,16953.0,16952.0,4.30768349]
[1673187802185,1.06886319,16953.0,16952.0,3.79508414]
[1673187803239,1.43655819,16953.0,16952.0,3.20518414]
[1673187803492,1.17108227,16953.0,16952.0,3.20518414]
[1673187803749,1.43030686,16953.0,16952.0,3.20518414]
[1673187804516,1.4303021,16953.0,16952.0,3.20518414]
[1673187804775,1.17108227,16953.0,16952.0,3.20518414]
[1673187805253,1.43030335,16953.0,16952.0,3.20518414]
[1673187805503,1.17108227,16953.0,16952.0,3.20518414]
[1673187806863,0.62614784,16953.0,16952.0,3.71757928]
[1673187807116,0.62614784,16953.0,16952.0,3.71777596]
[1673187807117,1.06884118,16953.0,16952.0,3.71777596]
[1673187807609,1.43653618,16953.0,16952.0,3.20518414]
[1673187808362,1.17108227,16953.0,16952.0,3.20518414]
[1673187808606,1.06883472,16953.0,16952.0,3.71774414]
[1673187809103,1.06883481,16953.0,16952.0,3.71774414]
[1673187809715,1.06883481,16953.0,16952.0,3.71769675]
[1673187809971,1.06883481,16953.0,16952.0,2.50518414]
[1673187810228,1.17108227,16953.0,16952.0,2.50518414]
[1673187810474,1.43652276,16953.0,16952.0,2.50518414]
[1673187810732,1.17108227,16953.0,16952.0,3.20518414]
[1673187811010,0.62613558,16953.0,16952.0,3.20518414]
[1673187811324,1.06882892,16953.0,16952.0,3.20518414]
[1673187811479,1.06882892,16953.0,16952.0,3.71752922]
[1673187811729,1.06882892,16953.0,16952.0,3.71759492]
[1673187812213,1.06882892,16953.0,16952.0,3.20518414]
[1673187812975,0.80338727,16953.0,16952.0,3.20518414]
[1673187813238,1.06882316,16953.0,16952.0,3.20518414]
[1673187813515,1.0688243,16953.0,16952.0,3.20518414]
[1673187814609,0.80338727,16953.0,16952.0,3.20518414]
[1673187815479,1.06238018,16953.0,16952.0,3.20518414]
[1673187815754,0.80338727,16953.0,16952.0,3.20518414]
[1673187816429,1.0623757,16953.0,16952.0,3.20518414]
[1673187816678,1.4300707,16953.0,16952.0,3.20518414]
[1673187817316,1.0623757,16953.0,16952.0,3.20518414]
[1673187817816,0.80338727,16953.0,16952.0,3.20518414]
[1673187818082,0.80338727,16953.0,16952.0,3.71735784]
[1673187819062,0.80338727,16953.0,16952.0,3.20518414]
[1673187819545,0.80338727,16953.0,16952.0,3.71732274]
[1673187819796,1.06267956,16953.0,16952.0,3.20518414]
[1673187820044,1.43037456,16953.0,16952.0,3.20518414]
[1673187820288,1.43037456,16953.0,16952.0,3.20530791]
[1673187821617,1.43037456,16953.0,16952.0,3.20518414]
[1673187821860,1.07635492,16953.0,16952.0,3.20530791]
[1673187822108,1.07635492,16953.0,16952.0,3.20518414]
[1673187822844,1.07635492,16953.0,16952.0,3.20530791]
[1673187823093,0.70865992,16953.0,16952.0,3.20530791]
[1673187823586,1.07635492,16953.0,16952.0,3.20530791]
[1673187823835,1.07635492,16953.0,16952.0,3.20518414]
[1673187824094,1.07635492,16953.0,16952.0,3.20511679]
[1673187824347,0.63366158,16953.0,16952.0,1.9568]
[1673187825364,0.63366158,16953.0,16952.0,1.95692681]
[1673187825868,0.63366158,16953.0,16952.0,1.9568]
[1673187826381,1.07603583,16953.0,16952.0,1.95692681]
[1673187826644,0.63366158,16953.0,16952.0,1.9568]
[1673187827171,1.0760355,16953.0,16952.0,1.9568]
[1673187827439,1.0760355,16953.0,16952.0,1.95692972]
[1673187827736,1.0760355,16953.0,16952.0,1.9568]
[1673187829306,0.63366158,16953.0,16952.0,1.9568]
[1673187830432,1.07604987,16953.0,16952.0,1.95692972]
[1673187830852,1.07604987,16953.0,16952.0,1.9568]
[1673187831097,1.07604987,16953.0,16952.0,1.95692696]
[1673187831501,0.63366158,16953.0,16952.0,1.95692696]
[1673187831764,0.63366158,16953.0,16952.0,1.25692696]
[1673187832013,0.63366158,16953.0,16952.0,1.2568]
[1673187832288,0.63366158,16953.0,16952.0,1.25692696]
[1673187832545,0.63366158,16953.0,16952.0,1.2568]
[1673187832819,0.63366158,16953.0,16952.0,1.9568]
[1673187833331,0.63366158,16953.0,16952.0,1.95692696]
[1673187833599,0.63360158,16953.0,16952.0,1.95692696]
[1673187834166,0.63360158,16953.0,16952.0,1.9568]
[1673187834413,0.63360158,16953.0,16952.0,1.95692696]
[1673187834666,0.63360158,16953.0,16952.0,1.9568]
[1673187835280,0.63354158,16953.0,16952.0,1.9568]
[1673187835516,0.63354158,16953.0,16952.0,1.95692959]
[1673187836007,0.63354158,16953.0,16952.0,1.9568]
[1673187836403,0.63354158,16953.0,16952.0,1.95692959]
[1673187836943,0.63348158,16953.0,16952.0,1.95692959]
[1673187837462,0.63348158,16953.0,16952.0,1.9568]
[1673187837988,0.63348158,16953.0,16952.0,1.95692959]
[1673187838761,0.63348158,16953.0,16952.0,1.9568]
[1673187840258,0.63342158,16953.0,16952.0,1.25692709]
[1673187841262,0.63342158,16953.0,16952.0,1.95692709]
[1673187842035,0.26572658,16953.0,16952.0,1.95692709]
[1673187842251,0.26572658,16953.0,16952.0,1.9568]
[1673187842517,0.63336158,16953.0,16952.0,1.9568]
[1673187843584,1.07583026,16953.0,16952.0,1.9568]
[1673187844060,1.07577026,16953.0,16952.0,1.9568]
[1673187845866,1.07571026,16953.0,16952.0,1.95705022]
[1673187847360,1.07571026,16953.0,16952.0,1.25705022]
[1673187847630,1.07571026,16953.0,16952.0,1.2568]
[1673187847876,1.07565026,16953.0,16952.0,1.2568]
[1673187848119,1.07565026,16953.0,16952.0,1.40585553]
[1673187848374,1.07565026,16953.0,16952.0,2.10585553]
[1673187849464,0.63318158,16953.0,16952.0,2.10585553]
[1673187849657,1.07570612,16953.0,16952.0,2.10585553]
[1673187851392,0.63318158,16953.0,16952.0,2.10585553]
[1673187851644,0.26548658,16953.0,16952.0,2.10585553]
[1673187852158,0.63318158,16953.0,16952.0,2.10585553]
[1673187853280,0.26548658,16953.0,16952.0,2.10585553]
[1673187854232,0.26548658,16953.0,16952.0,1.40585553]
[1673187854486,0.63318158,16953.0,16952.0,1.40585553]
[1673187854737,1.07576701,16953.0,16952.0,1.91647645]
[1673187855254,1.07576701,16953.0,16952.0,2.61647645]
[1673187855532,0.70801201,16953.0,16952.0,2.61647645]
[1673187856052,0.70801201,16953.0,16952.0,2.10585553]
[1673187856306,0.70801201,16953.0,16952.0,2.61618631]
[1673187858331,0.70801201,16953.0,16952.0,2.10585553]
[1673187858879,0.70801201,16953.0,16952.0,2.10610575]
[1673187859387,0.26542658,16953.0,16952.0,2.10610575]
[1673187860169,0.26532049,16953.0,16952.0,2.10610575]
[1673187860993,0.26532049,16953.0,16952.0,2.61643669]
[1673187861532,0.26532049,16953.0,16952.0,2.10610575]
[1673187866438,0.70800607,16953.0,16952.0,2.10610575]
[1673187868009,0.70800607,16953.0,16952.0,2.60610835]
[1673187869578,0.70800607,16953.0,16952.0,2.10610575]
[1673187869844,0.70800607,16953.0,16952.0,1.90608167]
[1673187870074,0.70800607,16953.0,16952.0,1.9060462]
[1673187870590,0.70800607,16953.0,16952.0,1.40610575]
[1673187870847,0.70800607,16953.0,16952.0,2.10610575]
[1673187871368,0.70800607,16953.0,16952.0,2.60601944]
[1673187871888,0.70800607,16953.0,16952.0,2.10610575]
[1673187872151,0.70800607,16953.0,16952.0,2.60601944]
[1673187872412,0.70800607,16953.0,16952.0,2.6060717]
[1673187873175,0.70800607,16953.0,16952.0,2.60607187]
[1673187874079,0.70800607,16953.0,16952.0,2.10610575]
[1673187874335,0.70800607,16953.0,16952.0,2.60604931]
[1673187875202,0.70800607,16953.0,16952.0,2.10610575]
[1673187875755,0.70800607,16953.0,16952.0,2.60595838]
[1673187876246,0.70800607,16953.0,16952.0,2.10610575]
[1673187876506,0.70800607,16953.0,16952.0,2.60595838]
[1673187877024,0.70800607,16953.0,16952.0,1.90595837]
[1673187877282,0.70800607,16953.0,16952.0,1.40610575]
[1673187878013,0.70800607,16953.0,16952.0,2.10610575]
[1673187878291,0.70800607,16953.0,16952.0,2.60600275]
[1673187878545,0.70800607,16953.0,16952.0,2.10610575]
[1673187878804,0.70800607,16953.0,16952.0,2.60600329]
[1673187880648,0.26532049,16953.0,16952.0,2.10585553]
[1673187882691,0.26532049,16953.0,16952.0,2.10575727]
[1673187882939,0.63301549,16953.0,16952.0,2.10575727]
[1673187883193,0.26532049,16953.0,16952.0,2.10575727]
[1673187883973,0.26532049,16953.0,16952.0,1.40575727]
[1673187884311,0.63301549,16953.0,16952.0,1.40600749]
[1673187885003,0.63301549,16953.0,16952.0,2.10600749]
[1673187886107,0.26532049,16953.0,16952.0,2.10600749]
[1673187886885,0.63301549,16953.0,16952.0,2.10600749]
[1673187887151,0.26532049,16953.0,16952.0,2.10600749]
[1673187890978,0.26532049,16953.0,16952.0,1.40600749]
[1673187891322,0.63301549,16953.0,16952.0,1.40600749]
[1673187891836,0.63301549,16953.0,16952.0,2.10600749]
[1673187892268,0.26532049,16953.0,16952.0,2.10600749]
[1673187892793,0.26532049,16953.0,16952.0,2.60589141]
[1673187894648,0.26532049,16953.0,16952.0,2.10600749]
[1673187896883,0.26532049,16953.0,16952.0,2.60580775]
[1673187897946,0.26532049,16953.0,16952.0,1.90580775]
[1673187898941,0.63301549,16953.0,16952.0,2.10600749]
[1673187899206,0.63301549,16953.0,16952.0,2.6058234]
[1673187899461,0.26532049,16953.0,16952.0,2.6058234]
[1673187900000,0.26532049,16953.0,16952.0,2.10600749]
[1673187901464,0.26532049,16953.0,16952.0,2.10007249]
[1673187904803,0.26532049,16953.0,16952.0,2.74864739]
[1673187906252,0.26532049,16953.0,16952.0,2.10007249]
[1673187907325,0.26532049,16953.0,16952.0,1.40007249]
[1673187907540,0.70809231,16953.0,16952.0,1.40007249]
[1673187908297,0.70809231,16953.0,16952.0,2.68792382]
[1673187908550,0.70809231,16953.0,16952.0,3.05614582]
[1673187915797,0.70809231,16953.0,16952.0,2.35614582]
[1673187916517,0.70809231,16953.0,16952.0,1.9876736]
[1673187916796,0.70809231,16953.0,16952.0,2.6876736]
[1673187917054,0.70809231,16953.0,16952.0,3.0558956]
[1673187917552,0.70809231,16953.0,16952.0,3.05602252]
[1673187919145,0.26532049,16953.0,16952.0,2.6876736]
[1673187919389,0.26532049,16953.0,16952.0,2.68779707]
[1673187921345,0.26532049,16953.0,16952.0,3.05601907]
[1673187921576,0.26532049,16953.0,16952.0,2.68779707]
[1673187923110,0.26532049,16953.0,16952.0,2.68772269]
[1673187924566,0.26532049,16953.0,16952.0,2.68772596]
[1673187926107,0.26522252,16953.0,16952.0,2.68772596]
[1673187926856,0.26522252,16953.0,16952.0,1.98772596]
[1673187927318,0.70789585,16953.0,16952.0,1.98772596]
[1673187927545,0.26522252,16953.0,16952.0,1.98772596]
[1673187927998,0.26522252,16953.0,16952.0,2.68772596]
[1673187929543,0.26522252,16953.0,16952.0,2.68759922]
[1673187929771,0.26522252,16953.0,16952.0,2.68772286]
[1673187931002,0.70789671,16953.0,16952.0,2.68772286]
[1673187931270,0.26522252,16953.0,16952.0,2.68772286]
[1673187933876,0.26522252,16953.0,16952.0,1.98772286]
[1673187934377,0.70789966,16953.0,16952.0,1.98772286]
[1673187934834,0.26522252,16953.0,16952.0,2.68772286]
[1673187935084,0.26522252,16953.0,16952.0,3.05594486]
[1673187935596,0.26522252,16953.0,16952.0,2.68772286]
[1673187938892,0.26522252,16953.0,16952.0,2.68759922]
[1673187940477,0.26522252,16953.0,16952.0,2.68772902]
[1673187941008,0.70790105,16953.0,16952.0,1.98772902]
[1673187941269,0.26522252,16953.0,16952.0,1.98772902]
[1673187941508,0.70789965,16953.0,16952.0,1.98772902]
[1673187941994,0.26522252,16953.0,16952.0,2.68772902]
[1673187942262,0.26522252,16953.0,16952.0,3.05595102]
[1673187943486,0.70789998,16953.0,16952.0,3.05595102]
[1673187946485,0.70789898,16953.0,16952.0,3.05582122]
[1673187947072,0.7078983,16953.0,16952.0,3.05582122]
[1673187947854,0.7078983,16953.0,16952.0,2.35582122]
[1673187948400,0.26522252,16953.0,16952.0,2.35582122]
[1673187948659,0.70789778,16953.0,16952.0,2.35573784]
[1673187948922,0.70789778,16953.0,16952.0,3.05573784]
[1673187949707,0.26522252,16953.0,16952.0,3.05573784]
[1673187949943,0.26522252,16953.0,16952.0,3.05586764]
[1673187952092,0.7079293,16953.0,16952.0,3.05586764]
[1673187954908,0.7079293,16953.0,16952.0,2.35586764]
[1673187956402,0.7079293,16953.0,16952.0,3.05586764]
[1673187962126,0.26522252,16953.0,16952.0,2.35586764]
[1673187962645,0.26522252,16953.0,16952.0,1.98751584]
[1673187962913,0.26522252,16953.0,16952.0,2.68751584]
[1673187964179,0.26522252,16953.0,16952.0,3.05573784]
[1673187965695,0.26522252,16953.0,16952.0,2.68751584]
[1673187966647,0.26522252,16953.0,16952.0,2.6876512]
[1673187967116,0.70793049,16953.0,16952.0,2.6876512]
[1673187968917,0.70793049,16953.0,16952.0,1.9876512]
[1673187969657,0.26522252,16953.0,16952.0,1.9876512]
[1673187969910,0.70792825,16953.0,16952.0,1.9876512]
[1673187970162,0.70792825,16953.0,16952.0,2.6876512]
[1673187970606,0.70792825,16953.0,16952.0,3.0558732]
[1673187971322,0.26522252,16953.0,16952.0,3.0558732]
[1673187971542,0.7079287,16953.0,16952.0,3.0558732]
[1673187971805,0.7079287,16953.0,16952.0,2.6876512]
[1673187973238,0.7079287,16953.0,16952.0,3.0558732]
[1673187973480,0.7079287,16953.0,16952.0,2.6876512]
[1673187975996,0.7079287,16953.0,16952.0,1.9876512]
[1673187977143,0.7079287,16953.0,16952.0,2.6876512]
[1673187982938,0.7079287,16953.0,16952.0,1.9876512]
[1673187984055,0.7079287,16953.0,16952.0,2.6876512]
[1673187984330,0.7079287,16953.0,16952.0,3.0558732]
[1673187985949,0.7079287,16953.0,16952.0,2.6876512]
[1673187987204,0.26522252,16953.0,16952.0,2.68751584]
[1673187987950,0.70792711,16953.0,16952.0,2.68751584]
[1673187990092,0.70792711,16953.0,16952.0,1.98751584]
[1673187990558,0.70792711,16953.0,16952.0,1.9876512]
[1673187991054,0.70792711,16953.0,16952.0,2.6876512]
[1673187992046,0.70792711,16953.0,16952.0,1.51404222]
[1673187992576,0.70792711,16953.0,16952.0,2.69384222]
[1673187993619,0.26522252,16953.0,16952.0,2.69384222]
[1673187996189,0.26522252,16953.0,16952.0,2.69370686]
[1673187999132,0.84503694,16953.0,16952.0,0.92605553]
[1673187999440,2.6003521,16953.0,16952.0,0.92597166]
[1673187999687,2.06903254,16953.0,16952.0,0.22597166]
[1673188000439,2.60007304,16953.0,16952.0,0.22597166]
[1673188001483,1.95149814,16953.0,16952.0,0.22597166]
[1673188003214,2.34378179,16953.0,16952.0,0.22597166]
[1673188005447,1.95149814,16953.0,16952.0,0.22597166]
[1673188013092,1.77729814,16953.0,16952.0,0.22597166]
[1673188014118,2.42587304,16953.0,16952.0,0.16139542]
[1673188017941,1.77729814,16953.0,16952.0,0.16139542]
[1673188024749,1.77729814,16953.0,16952.0,0.16185607]
[1673188024993,1.77729814,16953.0,16952.0,0.16139542]
[1673188029505,2.09237225,16953.0,16952.0,0.16139542]
[1673188030647,1.77729814,16953.0,16952.0,0.16139542]
[1673188038457,1.24625764,16953.0,16952.0,0.16139542]
[1673188038674,1.24625764,16953.0,16952.0,0.16185607]
[1673188038927,1.24625764,16953.0,16952.0,0.1613228]
[1673188041629,1.24625764,16953.0,16952.0,0.16366151]
[1673188041826,1.24625764,16953.0,16952.0,0.1613228]
[1673188045697,1.77750555,16953.0,16952.0,0.1613228]
[1673188046696,1.40981055,16953.0,16952.0,0.1613228]
[1673188046956,1.40971549,16953.0,16952.0,0.1613228]
[1673188047214,1.40971549,16953.0,16952.0,0.16143972]
[1673188047737,1.40971549,16953.0,16952.0,0.1613228]
[1673188049542,1.40971549,16953.0,16952.0,0.16143972]
[1673188050021,1.40971549,16953.0,16952.0,0.1613228]
[1673188050575,1.40971549,16953.0,16952.0,0.16143972]
[1673188051897,1.77741049,16953.0,16952.0,0.1613228]
[1673188052143,1.40971549,16953.0,16952.0,0.1613228]
[1673188052394,1.77741049,16953.0,16952.0,0.1613228]
[1673188053393,1.40971549,16953.0,16952.0,0.1613228]
[1673188053639,1.77741049,16953.0,16952.0,0.1613228]
[1673188053893,1.40971549,16953.0,16952.0,0.1613228]
[1673188055437,1.40971549,16953.0,16952.0,0.16187734]
[1673188055783,1.40971549,16953.0,16952.0,0.1613228]
[1673188060916,0.87846758,16953.0,16952.0,0.1613228]
[1673188067469,0.87846758,16953.0,16952.0,0.16120944]
[1673188068506,0.87846758,16953.0,16952.0,0.75110944]
[1673188071399,0.26512746,16953.0,16952.0,1.02607596]
[1673188071650,0.26512746,16953.0,16952.0,1.61597596]
[1673188071651,0.44834305,16953.0,16952.0,1.61597596]
[1673188071907,0.70763534,16953.0,16952.0,1.61597596]
[1673188072181,0.70763534,16953.0,16952.0,1.34100944]
[1673188073153,1.07533034,16953.0,16952.0,2.04100944]
[1673188073367,0.70763534,16953.0,16952.0,2.04100944]
[1673188075467,0.70763534,16953.0,16952.0,2.04156398]
[1673188076387,1.0615647,16953.0,16952.0,2.04156398]
[1673188076642,1.0615647,16953.0,16952.0,2.38658495]
[1673188077706,1.0615647,16953.0,16952.0,2.04156398]
[1673188078498,1.0615647,16953.0,16952.0,2.04100944]
[1673188078833,0.70763534,16953.0,16952.0,2.04100944]
[1673188081410,0.70377834,16953.0,16952.0,2.04100944]
[1673188082452,0.70377834,16953.0,16952.0,1.34100944]
[1673188082743,1.07147334,16953.0,16952.0,1.34100944]
[1673188083000,0.70377834,16953.0,16952.0,1.51410944]
[1673188083257,1.0577131,16953.0,16952.0,1.51410944]
[1673188083511,0.70377834,16953.0,16952.0,2.21410944]
[1673188083756,1.05771322,16953.0,16952.0,2.21410944]
[1673188084264,0.70377834,16953.0,16952.0,2.21410944]
[1673188089374,0.70377834,16953.0,16952.0,1.51410944]
[1673188090430,0.70377834,16953.0,16952.0,2.21410944]
[1673188094000,1.05777109,16953.0,16952.0,2.21410944]
[1673188094284,0.70377834,16953.0,16952.0,2.21410944]
[1673188094991,1.05777941,16953.0,16952.0,2.21410944]
[1673188095461,0.70377834,16953.0,16952.0,2.21410944]
[1673188096431,0.70377834,16953.0,16952.0,1.51410944]
[1673188096687,0.70377834,16953.0,16952.0,1.51466398]
[1673188097450,0.70377834,16953.0,16952.0,2.21466398]
[1673188102538,0.70377834,16953.0,16952.0,2.21410944]
[1673188103432,0.70377834,16953.0,16952.0,1.51410944]
[1673188104403,0.70377834,16953.0,16952.0,2.21410944]
[1673188105480,0.70377834,16953.0,16952.0,2.21401079]
[1673188106290,0.70377834,16953.0,16952.0,2.21456533]
[1673188108365,0.26127046,16953.0,16952.0,2.21401079]
[1673188114592,0.26127046,16953.0,16952.0,1.51401079]
[1673188114893,0.62896546,16953.0,16952.0,1.51401079]
[1673188116562,0.26127046,16953.0,16952.0,1.51401079]
[1673188117660,0.26127046,16953.0,16952.0,0.33421079]
[1673188119257,1.16021337,16953.0,16952.0,0.33421079]
[1673188119489,0.62896546,16953.0,16952.0,0.33421079]
[1673188119715,1.16021337,16953.0,16952.0,0.33421079]
[1673188120036,0.62896546,16953.0,16952.0,0.33421079]
[1673188121593,1.16021337,16953.0,16952.0,0.33421079]
[1673188121846,0.62896546,16953.0,16952.0,0.33421079]
[1673188122066,0.26127046,16953.0,16952.0,0.33421079]
[1673188126987,0.26127046,16953.0,16952.0,0.33411313]
[1673188129243,0.70390471,16953.0,16952.0,0.60008495]
[1673188129514,0.70390471,16953.0,16952.0,0.33411313]
[1673188131034,0.70390471,16953.0,16952.0,0.92401313]
[1673188132063,0.70390471,16953.0,16952.0,0.92678947]
[1673188132609,0.70390471,16953.0,16952.0,1.62678947]
[1673188133618,0.70390471,16953.0,16952.0,1.62401313]
[1673188136258,0.70390471,16953.0,16952.0,1.62415193]
[1673188139860,0.70390471,16953.0,16952.0,1.62401313]
[1673188140918,0.70390471,16953.0,16952.0,0.92401313]
[1673188141169,0.26127046,16953.0,16952.0,0.92401313]
[1673188141421,0.70387187,16953.0,16952.0,0.92401313]
[1673188141935,0.70387187,16953.0,16952.0,1.62401313]
[1673188142188,1.05793748,16953.0,16952.0,1.92401313]
[1673188142434,1.05793748,16953.0,16952.0,1.92415193]
[1673188142942,0.70387187,16953.0,16952.0,1.45105193]
[1673188143228,1.05794012,16953.0,16952.0,3.15274874]
[1673188143740,0.79864783,16953.0,16952.0,3.52097074]
[1673188144208,0.79864783,16953.0,16952.0,3.50014874]
[1673188144209,0.62159138,16953.0,16952.0,3.50014874]